[Event "Titled Tuesday Blitz July 26 Late 2022"]
[White "Taboas Rodriguez, Daniel"]
[Black "Hafiz, Arif Abdul"]
[WhiteFideId "2208466"]
[BlackFideId "7104227"]
[WhiteElo "2429"]
[BlackElo "2198"]
[Result "0-1"]
[Round "04"]
[TimeControl "180+1"]
[Date "2022.07.26"]
[WhiteClock "0:00:20"]
[BlackClock "0:01:00"]

1. d4 {[%clk 0:03:00]}  Nc6 {[%clk 0:03:00]} 2. Nf3 {[%clk 0:03:00]}  d5 {[%clk 0:03:01]} 3. Nc3 {[%clk 0:03:00]}  Bf5 {[%clk 0:03:00]} 4. Bf4 {[%clk 0:03:00]}  e6 {[%clk 0:03:00]} 5. e3 {[%clk 0:03:00]}  Bd6 {[%clk 0:03:00]} 6. Bb5 {[%clk 0:02:59]}  Ne7 {[%clk 0:02:58]} 7. O-O {[%clk 0:02:59]}  O-O {[%clk 0:02:58]} 8. Bg3 {[%clk 0:02:51]}  a6 {[%clk 0:02:57]} 9. Bd3 {[%clk 0:02:51]}  Bxd3 {[%clk 0:02:57]} 10. Qxd3 {[%clk 0:02:51]}  Nb4 {[%clk 0:02:56]} 11. Qd2 {[%clk 0:02:51]}  c5 {[%clk 0:02:56]} 12. dxc5 {[%clk 0:02:39]}  Bxc5 {[%clk 0:02:55]} 13. a3 {[%clk 0:02:40]}  Nbc6 {[%clk 0:02:54]} 14. e4 {[%clk 0:02:40]}  d4 {[%clk 0:02:41]} 15. Ne2 {[%clk 0:02:40]}  Ng6 {[%clk 0:02:25]} 16. Rfd1 {[%clk 0:02:38]}  e5 {[%clk 0:02:25]} 17. c3 {[%clk 0:02:37]}  dxc3 {[%clk 0:02:18]} 18. Qxc3 {[%clk 0:02:36]}  Qe7 {[%clk 0:02:14]} 19. Rd5 {[%clk 0:02:35]}  Bd6 {[%clk 0:02:12]} 20. Rad1 {[%clk 0:02:34]}  Rad8 {[%clk 0:02:11]} 21. h3 {[%clk 0:02:11]}  h6 {[%clk 0:02:10]} 22. R1d3 {[%clk 0:02:03]}  Kh7 {[%clk 0:02:09]} 23. Qd2 {[%clk 0:02:03]}  Bc7 {[%clk 0:02:08]} 24. Rd7 {[%clk 0:02:02]}  Rxd7 {[%clk 0:02:01]} 25. Rxd7 {[%clk 0:02:03]}  Rd8 {[%clk 0:02:01]} 26. Rxe7 {[%clk 0:01:46]}  Rxd2 {[%clk 0:02:01]} 27. Rxc7 {[%clk 0:01:46]}  Rxe2 {[%clk 0:02:00]} 28. Rxb7 {[%clk 0:01:46]}  f6 {[%clk 0:01:54]} 29. Rb6 {[%clk 0:01:43]}  Na5 {[%clk 0:01:54]} 30. b4 {[%clk 0:01:41]}  Nc4 {[%clk 0:01:51]} 31. Rxa6 {[%clk 0:01:41]}  Rxe4 {[%clk 0:01:51]} 32. b5 {[%clk 0:01:37]}  Re2 {[%clk 0:01:49]} 33. a4 {[%clk 0:01:35]}  Rb2 {[%clk 0:01:47]} 34. Rc6 {[%clk 0:01:29]}  Rb4 {[%clk 0:01:46]} 35. Ra6 {[%clk 0:01:23]}  Ne7 {[%clk 0:01:45]} 36. Nh4 {[%clk 0:01:19]}  Rb1+ {[%clk 0:01:40]} 37. Kh2 {[%clk 0:01:19]}  Nd2 {[%clk 0:01:40]} 38. Bxe5 {[%clk 0:00:50]}  Nf1+ {[%clk 0:01:40]} 39. Kg1 {[%clk 0:00:50]}  fxe5 {[%clk 0:01:41]} 40. g4 {[%clk 0:00:50]}  Nd5 {[%clk 0:01:37]} 41. Kg2 {[%clk 0:00:46]}  Nf4+ {[%clk 0:01:32]} 42. Kf3 {[%clk 0:00:45]}  Re1 {[%clk 0:01:14]} 43. Nf5 {[%clk 0:00:37]}  Nd2+ {[%clk 0:00:59]} 44. Kg3 {[%clk 0:00:32]}  Rg1+ {[%clk 0:01:00]} 45. Kh4 {[%clk 0:00:20]}  g5# {[%clk 0:01:00]} 0-1


[Site "https://www.chess.com"]

[Event "Titled Tuesday Blitz July 26 Late 2022"]
[White "Vivekananthan, Anish"]
[Black "Grigorov, Grigor"]
[WhiteFideId "2090775"]
[BlackFideId "2907313"]
[WhiteElo "2782"]
[BlackElo "2510"]
[Result "0-1"]
[Round "04"]
[TimeControl "180+1"]
[Date "2022.07.26"]
[WhiteClock "0:02:15"]
[BlackClock "0:02:35"]

1. d4 {[%clk 0:03:00]}  Nf6 {[%clk 0:02:59]} 2. Nf3 {[%clk 0:03:00]}  e6 {[%clk 0:02:59]} 3. c4 {[%clk 0:03:00]}  b6 {[%clk 0:02:59]} 4. g3 {[%clk 0:02:55]}  Bb7 {[%clk 0:03:00]} 5. Bg2 {[%clk 0:02:55]}  Be7 {[%clk 0:03:00]} 6. O-O {[%clk 0:02:55]}  O-O {[%clk 0:03:00]} 7. Nc3 {[%clk 0:02:55]}  Ne4 {[%clk 0:03:00]} 8. Bd2 {[%clk 0:02:50]}  Bf6 {[%clk 0:03:00]} 9. Qc2 {[%clk 0:02:46]}  Nxd2 {[%clk 0:02:59]} 10. Qxd2 {[%clk 0:02:45]}  d6 {[%clk 0:02:59]} 11. Rac1 {[%clk 0:02:38]}  Nd7 {[%clk 0:02:58]} 12. Rfd1 {[%clk 0:02:38]}  Qe7 {[%clk 0:02:57]} 13. d5 {[%clk 0:02:32]}  Bxc3 {[%clk 0:02:53]} 14. Rxc3 {[%clk 0:02:31]}  e5 {[%clk 0:02:51]} 15. Ne1 {[%clk 0:02:27]}  a5 {[%clk 0:02:50]} 16. b3 {[%clk 0:02:26]}  Nc5 {[%clk 0:02:47]} 17. a3 {[%clk 0:02:26]}  a4 {[%clk 0:02:36]} 18. b4 {[%clk 0:02:26]}  Nb3 {[%clk 0:02:36]} 19. Nd3 {[%clk 0:02:15]}  Nxd2 {[%clk 0:02:35]} 0-1


[Site "https://www.chess.com"]

[Event "Titled Tuesday Blitz July 26 Late 2022"]
[White "Yoo, Christopher Woojin"]
[Black "Vasquez Schroeder, Rodrigo"]
[WhiteFideId "30909694"]
[BlackFideId "3400042"]
[WhiteElo "2105"]
[BlackElo "2567"]
[Result "0-1"]
[Round "04"]
[TimeControl "180+1"]
[Date "2022.07.26"]
[WhiteClock "0:00:02"]
[BlackClock "0:00:26"]

1. d4 {[%clk 0:03:00]}  d5 {[%clk 0:02:59]} 2. Nf3 {[%clk 0:03:01]}  Nf6 {[%clk 0:02:59]} 3. Bf4 {[%clk 0:03:01]}  c5 {[%clk 0:02:57]} 4. e3 {[%clk 0:03:02]}  Nc6 {[%clk 0:02:55]} 5. Nbd2 {[%clk 0:03:02]}  cxd4 {[%clk 0:02:52]} 6. exd4 {[%clk 0:03:03]}  Qb6 {[%clk 0:02:52]} 7. Nb3 {[%clk 0:02:58]}  Bf5 {[%clk 0:02:38]} 8. a4 {[%clk 0:02:23]}  a5 {[%clk 0:02:24]} 9. Bb5 {[%clk 0:02:21]}  e6 {[%clk 0:02:22]} 10. O-O {[%clk 0:02:19]}  Be7 {[%clk 0:02:21]} 11. Ne5 {[%clk 0:02:07]}  O-O {[%clk 0:02:19]} 12. Bxc6 {[%clk 0:02:07]}  bxc6 {[%clk 0:02:18]} 13. g4 {[%clk 0:02:07]}  Bg6 {[%clk 0:02:03]} 14. g5 {[%clk 0:02:05]}  Nh5 {[%clk 0:01:50]} 15. Nd7 {[%clk 0:02:04]}  Qb7 {[%clk 0:01:45]} 16. Nxf8 {[%clk 0:02:05]}  Nxf4 {[%clk 0:01:42]} 17. Nxg6 {[%clk 0:02:05]}  fxg6 {[%clk 0:01:42]} 18. Qg4 {[%clk 0:01:55]}  Rf8 {[%clk 0:01:24]} 19. h4 {[%clk 0:01:52]}  Rf5 {[%clk 0:01:23]} 20. Kh1 {[%clk 0:01:21]}  h6 {[%clk 0:01:12]} 21. gxh6 {[%clk 0:01:17]}  Rh5 {[%clk 0:01:11]} 22. Qxf4 {[%clk 0:01:16]}  Rxh4+ {[%clk 0:01:11]} 23. Qxh4 {[%clk 0:01:17]}  Bxh4 {[%clk 0:01:11]} 24. hxg7 {[%clk 0:00:57]}  Qf7 {[%clk 0:01:08]} 25. f3 {[%clk 0:00:34]}  Qf5 {[%clk 0:01:04]} 26. Rad1 {[%clk 0:00:23]}  Qxc2 {[%clk 0:00:55]} 27. Nd2 {[%clk 0:00:23]}  Bg5 {[%clk 0:00:52]} 28. f4 {[%clk 0:00:24]}  Bxf4 {[%clk 0:00:51]} 29. Nf3 {[%clk 0:00:24]}  Qf5 {[%clk 0:00:49]} 30. Rde1 {[%clk 0:00:20]}  Qh3+ {[%clk 0:00:46]} 31. Kg1 {[%clk 0:00:20]}  g5 {[%clk 0:00:34]} 32. Re2 {[%clk 0:00:03]}  g4 {[%clk 0:00:34]} 33. Ne5 {[%clk 0:00:03]}  Be3+ {[%clk 0:00:33]} 34. Rxe3 {[%clk 0:00:03]}  Qxe3+ {[%clk 0:00:33]} 35. Kg2 {[%clk 0:00:04]}  Qxd4 {[%clk 0:00:30]} 36. Nf7 {[%clk 0:00:01]}  Kxg7 {[%clk 0:00:29]} 37. Nd8 {[%clk 0:00:01]}  Qxb2+ {[%clk 0:00:25]} 38. Kg3 {[%clk 0:00:02]}  Qb8+ {[%clk 0:00:26]} 0-1


[Site "https://www.chess.com"]

[Event "Titled Tuesday Blitz July 26 Late 2022"]
[White "Yuan, Qingyu"]
[Black "Lewtak, Damian"]
[WhiteFideId "8609772"]
[BlackFideId "1141724"]
[WhiteElo "2359"]
[BlackElo "2359"]
[Result "1-0"]
[Round "04"]
[TimeControl "180+1"]
[Date "2022.07.26"]
[WhiteClock "0:00:07"]
[BlackClock "0:00:08"]

1. e4 {[%clk 0:03:00]}  c6 {[%clk 0:02:59]} 2. Nf3 {[%clk 0:03:01]}  d5 {[%clk 0:02:59]} 3. Nc3 {[%clk 0:03:02]}  Bg4 {[%clk 0:02:59]} 4. h3 {[%clk 0:03:02]}  Bxf3 {[%clk 0:02:59]} 5. Qxf3 {[%clk 0:03:03]}  e6 {[%clk 0:02:59]} 6. Be2 {[%clk 0:03:03]}  Nd7 {[%clk 0:02:59]} 7. d4 {[%clk 0:03:03]}  Bb4 {[%clk 0:02:57]} 8. O-O {[%clk 0:02:42]}  Ngf6 {[%clk 0:02:52]} 9. e5 {[%clk 0:02:36]}  Ng8 {[%clk 0:02:43]} 10. Qg3 {[%clk 0:02:32]}  g6 {[%clk 0:02:39]} 11. Bg5 {[%clk 0:02:26]}  Be7 {[%clk 0:02:32]} 12. Be3 {[%clk 0:02:22]}  h5 {[%clk 0:02:31]} 13. Bd3 {[%clk 0:02:18]}  Nh6 {[%clk 0:02:22]} 14. Bxg6 {[%clk 0:02:05]}  Rg8 {[%clk 0:02:04]} 15. Bxh6 {[%clk 0:02:00]}  Rxg6 {[%clk 0:02:03]} 16. Qe3 {[%clk 0:02:00]}  c5 {[%clk 0:02:02]} 17. Bf4 {[%clk 0:01:51]}  cxd4 {[%clk 0:02:02]} 18. Qxd4 {[%clk 0:01:51]}  Bc5 {[%clk 0:02:02]} 19. Qd2 {[%clk 0:01:16]}  Qh4 {[%clk 0:02:02]} 20. Kh2 {[%clk 0:01:16]}  O-O-O {[%clk 0:01:48]} 21. g3 {[%clk 0:01:13]}  Qe7 {[%clk 0:01:48]} 22. h4 {[%clk 0:01:12]}  Rdg8 {[%clk 0:01:47]} 23. Ne2 {[%clk 0:01:11]}  Rg4 {[%clk 0:01:33]} 24. Ng1 {[%clk 0:01:07]}  Nf8 {[%clk 0:01:05]} 25. Nf3 {[%clk 0:00:51]}  Ng6 {[%clk 0:00:49]} 26. Bg5 {[%clk 0:00:52]}  Qc7 {[%clk 0:00:47]} 27. Rae1 {[%clk 0:00:50]}  Re4 {[%clk 0:00:43]} 28. Bf6 {[%clk 0:00:42]}  Kb8 {[%clk 0:00:32]} 29. c3 {[%clk 0:00:36]}  Be7 {[%clk 0:00:29]} 30. Bxe7 {[%clk 0:00:12]}  Qxe7 {[%clk 0:00:30]} 31. Qd3 {[%clk 0:00:12]}  Nxh4 {[%clk 0:00:18]} 32. Rxe4 {[%clk 0:00:09]}  dxe4 {[%clk 0:00:14]} 33. Qxe4 {[%clk 0:00:09]}  Rg4 {[%clk 0:00:13]} 34. Qe2 {[%clk 0:00:05]}  Nf5 {[%clk 0:00:10]} 35. Rd1 {[%clk 0:00:03]}  h4 {[%clk 0:00:09]} 36. Nxh4 {[%clk 0:00:04]}  Qg5 {[%clk 0:00:06]} 37. Nxf5 {[%clk 0:00:02]}  Qxf5 {[%clk 0:00:05]} 38. Kg2 {[%clk 0:00:03]}  Rg8 {[%clk 0:00:04]} 39. Qe3 {[%clk 0:00:02]}  a6 {[%clk 0:00:04]} 40. Rd4 {[%clk 0:00:03]}  Qc2 {[%clk 0:00:03]} 41. Rd2 {[%clk 0:00:02]}  Qa4 {[%clk 0:00:03]} 42. b3 {[%clk 0:00:02]}  Qa3 {[%clk 0:00:03]} 43. c4 {[%clk 0:00:02]}  Qe7 {[%clk 0:00:03]} 44. Qd3 {[%clk 0:00:03]}  Rh8 {[%clk 0:00:03]} 45. Qd6+ {[%clk 0:00:03]}  Qxd6 {[%clk 0:00:03]} 46. Rxd6 {[%clk 0:00:04]}  Kc7 {[%clk 0:00:04]} 47. Rd4 {[%clk 0:00:04]}  Rh5 {[%clk 0:00:04]} 48. Rf4 {[%clk 0:00:04]}  Rh7 {[%clk 0:00:04]} 49. Rf6 {[%clk 0:00:05]}  Kd7 {[%clk 0:00:05]} 50. Kf3 {[%clk 0:00:05]}  Ke7 {[%clk 0:00:05]} 51. Rf4 {[%clk 0:00:05]}  Rh1 {[%clk 0:00:05]} 52. Re4 {[%clk 0:00:05]}  Rd1 {[%clk 0:00:06]} 53. Re2 {[%clk 0:00:06]}  Rd3+ {[%clk 0:00:06]} 54. Ke4 {[%clk 0:00:06]}  Rd1 {[%clk 0:00:07]} 55. f4 {[%clk 0:00:06]}  Rg1 {[%clk 0:00:07]} 56. Kf3 {[%clk 0:00:06]}  Rf1+ {[%clk 0:00:08]} 57. Kg4 {[%clk 0:00:07]}  Rg1 {[%clk 0:00:08]} 58. Rd2 {[%clk 0:00:07]}  Ke8 {[%clk 0:00:07]} 59. Rc2 {[%clk 0:00:07]}  Rg2 {[%clk 0:00:08]} 60. Rxg2 {[%clk 0:00:07]} 1-0


[Site "https://www.chess.com"]

[Event "Titled Tuesday Blitz July 26 Late 2022"]
[White "Aaron, Deepak"]
[Black "Holt, Conrad"]
[WhiteFideId "2009412"]
[BlackFideId "2034387"]
[WhiteElo "2644"]
[BlackElo "2586"]
[Result "0-1"]
[Round "05"]
[TimeControl "180+1"]
[Date "2022.07.26"]
[WhiteClock "0:00:03"]
[BlackClock "0:00:15"]

1. e4 {[%clk 0:03:00]}  e6 {[%clk 0:02:53]} 2. d4 {[%clk 0:03:00]}  d5 {[%clk 0:02:53]} 3. Nd2 {[%clk 0:02:59]}  c5 {[%clk 0:02:52]} 4. exd5 {[%clk 0:02:58]}  Qxd5 {[%clk 0:02:51]} 5. Ngf3 {[%clk 0:02:58]}  cxd4 {[%clk 0:02:51]} 6. Bc4 {[%clk 0:02:58]}  Qd7 {[%clk 0:02:51]} 7. Qe2 {[%clk 0:02:53]}  Nc6 {[%clk 0:02:48]} 8. O-O {[%clk 0:02:53]}  Nf6 {[%clk 0:02:47]} 9. Rd1 {[%clk 0:02:52]}  Bd6 {[%clk 0:02:45]} 10. Nb3 {[%clk 0:02:47]}  O-O {[%clk 0:02:44]} 11. Nbxd4 {[%clk 0:02:43]}  Nxd4 {[%clk 0:02:37]} 12. Rxd4 {[%clk 0:02:42]}  Qc7 {[%clk 0:02:35]} 13. Bg5 {[%clk 0:02:39]}  Nh5 {[%clk 0:02:17]} 14. Rad1 {[%clk 0:02:31]}  Bc5 {[%clk 0:02:17]} 15. Rh4 {[%clk 0:02:26]}  g6 {[%clk 0:02:09]} 16. Rxh5 {[%clk 0:01:51]}  gxh5 {[%clk 0:02:08]} 17. Bf6 {[%clk 0:01:40]}  Be7 {[%clk 0:01:51]} 18. Be5 {[%clk 0:01:37]}  Qc5 {[%clk 0:01:51]} 19. Bd3 {[%clk 0:01:24]}  f6 {[%clk 0:01:39]} 20. Ng5 {[%clk 0:00:59]}  fxe5 {[%clk 0:01:23]} 21. Qxh5 {[%clk 0:00:51]}  Qxf2+ {[%clk 0:01:22]} 22. Kh1 {[%clk 0:00:52]}  Rf7 {[%clk 0:01:23]} 23. Bxh7+ {[%clk 0:00:42]}  Kf8 {[%clk 0:01:19]} 24. Qh6+ {[%clk 0:00:23]}  Rg7 {[%clk 0:01:03]} 25. Bg6 {[%clk 0:00:20]}  Bxg5 {[%clk 0:00:49]} 26. Qxg5 {[%clk 0:00:20]}  Bd7 {[%clk 0:00:49]} 27. Qh6 {[%clk 0:00:11]}  Kg8 {[%clk 0:00:43]} 28. h4 {[%clk 0:00:09]}  Bc6 {[%clk 0:00:39]} 29. Qg5 {[%clk 0:00:03]}  Rf8 {[%clk 0:00:34]} 30. h5 {[%clk 0:00:03]}  Qf4 {[%clk 0:00:15]} 0-1


[Site "https://www.chess.com"]

[Event "Titled Tuesday Blitz July 26 Late 2022"]
[White "Ansh M Shah"]
[Black "Mortazavi, Ali"]
[WhiteFideId "25033379"]
[BlackFideId "401323"]
[WhiteElo "1819"]
[BlackElo "2339"]
[Result "1-0"]
[Round "05"]
[TimeControl "180+1"]
[Date "2022.07.27"]
[WhiteClock "0:00:13"]
[BlackClock "0:00:03"]

1. d4 {[%clk 0:03:00]}  Nf6 {[%clk 0:02:59]} 2. c4 {[%clk 0:02:53]}  g6 {[%clk 0:02:57]} 3. h4 {[%clk 0:02:53]}  Bg7 {[%clk 0:02:58]} 4. Nc3 {[%clk 0:02:53]}  h5 {[%clk 0:02:58]} 5. e4 {[%clk 0:02:54]}  d6 {[%clk 0:02:58]} 6. Nf3 {[%clk 0:02:54]}  Bg4 {[%clk 0:02:57]} 7. Be2 {[%clk 0:02:53]}  O-O {[%clk 0:02:56]} 8. Bg5 {[%clk 0:02:52]}  Nc6 {[%clk 0:02:49]} 9. d5 {[%clk 0:02:51]}  Bxf3 {[%clk 0:02:40]} 10. gxf3 {[%clk 0:02:45]}  Nb8 {[%clk 0:02:35]} 11. Be3 {[%clk 0:02:40]}  c6 {[%clk 0:02:33]} 12. f4 {[%clk 0:02:39]}  cxd5 {[%clk 0:02:32]} 13. cxd5 {[%clk 0:02:40]}  Qa5 {[%clk 0:02:25]} 14. Qd2 {[%clk 0:02:32]}  Na6 {[%clk 0:02:22]} 15. e5 {[%clk 0:02:23]}  Nd7 {[%clk 0:01:52]} 16. e6 {[%clk 0:02:13]}  fxe6 {[%clk 0:01:51]} 17. dxe6 {[%clk 0:02:13]}  Ndc5 {[%clk 0:01:51]} 18. Rg1 {[%clk 0:01:54]}  Rf6 {[%clk 0:01:35]} 19. Bd4 {[%clk 0:01:44]}  Rxe6 {[%clk 0:01:19]} 20. O-O-O {[%clk 0:01:27]}  Nb3+ {[%clk 0:00:41]} 21. axb3 {[%clk 0:01:25]}  Qa1+ {[%clk 0:00:40]} 22. Nb1 {[%clk 0:01:22]}  Bxd4 {[%clk 0:00:31]} 23. Bc4 {[%clk 0:00:48]}  Rc8 {[%clk 0:00:26]} 24. Qxd4 {[%clk 0:00:46]}  Kh7 {[%clk 0:00:13]} 25. f5 {[%clk 0:00:41]}  Rf6 {[%clk 0:00:02]} 26. fxg6+ {[%clk 0:00:39]}  Kg7 {[%clk 0:00:02]} 27. Kd2 {[%clk 0:00:18]}  b5 {[%clk 0:00:01]} 28. Bxb5 {[%clk 0:00:15]}  Qa5+ {[%clk 0:00:02]} 29. Nc3 {[%clk 0:00:14]}  Rc5 {[%clk 0:00:02]} 30. Bxa6 {[%clk 0:00:13]}  Qxa6 {[%clk 0:00:02]} 31. Kc2 {[%clk 0:00:13]}  Qb6 {[%clk 0:00:02]} 32. Rd2 {[%clk 0:00:12]}  Qb7 {[%clk 0:00:02]} 33. Rg3 {[%clk 0:00:11]}  Rf5 {[%clk 0:00:02]} 34. Re3 {[%clk 0:00:11]}  e5 {[%clk 0:00:02]} 35. Qd5 {[%clk 0:00:11]}  Rxf2 {[%clk 0:00:03]} 36. Qxb7+ {[%clk 0:00:11]}  Kh6 {[%clk 0:00:03]} 37. Rxf2 {[%clk 0:00:11]}  Rxf2+ {[%clk 0:00:03]} 38. Re2 {[%clk 0:00:12]}  Rxe2+ {[%clk 0:00:03]} 39. Nxe2 {[%clk 0:00:13]} 1-0


[Site "https://www.chess.com"]

[Event "Titled Tuesday Blitz July 26 Late 2022"]
[White "Begmuratov, Khumoyun"]
[Black "Jin, Ashton"]
[WhiteFideId "14210207"]
[BlackFideId "30931908"]
[WhiteElo "1978"]
[BlackElo "2488"]
[Result "0-1"]
[Round "05"]
[TimeControl "180+1"]
[Date "2022.07.27"]
[WhiteClock "0:00:52"]
[BlackClock "0:00:23"]

1. e4 {[%clk 0:03:00]}  c5 {[%clk 0:03:00]} 2. c3 {[%clk 0:03:00]}  Nf6 {[%clk 0:02:59]} 3. e5 {[%clk 0:03:00]}  Nd5 {[%clk 0:03:00]} 4. d4 {[%clk 0:03:01]}  cxd4 {[%clk 0:03:00]} 5. Qxd4 {[%clk 0:03:02]}  e6 {[%clk 0:02:59]} 6. Nf3 {[%clk 0:03:03]}  Nc6 {[%clk 0:02:59]} 7. Qe4 {[%clk 0:03:03]}  d6 {[%clk 0:03:00]} 8. Bb5 {[%clk 0:03:04]}  Bd7 {[%clk 0:02:59]} 9. c4 {[%clk 0:03:05]}  Nc7 {[%clk 0:02:57]} 10. Bg5 {[%clk 0:03:03]}  Qc8 {[%clk 0:02:47]} 11. exd6 {[%clk 0:03:02]}  Bxd6 {[%clk 0:02:44]} 12. O-O {[%clk 0:02:56]}  a6 {[%clk 0:02:22]} 13. Rd1 {[%clk 0:02:51]}  axb5 {[%clk 0:02:13]} 14. Rxd6 {[%clk 0:02:50]}  O-O {[%clk 0:02:11]} 15. Nc3 {[%clk 0:02:49]}  bxc4 {[%clk 0:02:03]} 16. Rad1 {[%clk 0:02:47]}  Nd5 {[%clk 0:01:53]} 17. Nxd5 {[%clk 0:02:23]}  exd5 {[%clk 0:01:53]} 18. Qxd5 {[%clk 0:02:22]}  Be6 {[%clk 0:01:51]} 19. Qd2 {[%clk 0:02:11]}  Rxa2 {[%clk 0:01:50]} 20. Qc3 {[%clk 0:02:07]}  Qa8 {[%clk 0:01:31]} 21. Ne5 {[%clk 0:02:03]}  Nxe5 {[%clk 0:01:24]} 22. Qxe5 {[%clk 0:02:04]}  Qa5 {[%clk 0:01:02]} 23. Rd8 {[%clk 0:02:02]}  Rxd8 {[%clk 0:00:51]} 24. Rxd8+ {[%clk 0:01:46]}  Qxd8 {[%clk 0:00:51]} 25. h4 {[%clk 0:01:40]}  Qe8 {[%clk 0:00:40]} 26. Qg3 {[%clk 0:01:34]}  Kh8 {[%clk 0:00:35]} 27. Bd2 {[%clk 0:01:29]}  f6 {[%clk 0:00:32]} 28. Bc3 {[%clk 0:01:27]}  Ra1+ {[%clk 0:00:31]} 29. Kh2 {[%clk 0:01:27]}  Ra8 {[%clk 0:00:31]} 30. Qf3 {[%clk 0:01:20]}  Bf7 {[%clk 0:00:28]} 31. Qg4 {[%clk 0:01:06]}  Bg6 {[%clk 0:00:27]} 32. Qxc4 {[%clk 0:01:05]}  Rd8 {[%clk 0:00:26]} 33. Qf4 {[%clk 0:01:02]}  h5 {[%clk 0:00:25]} 34. Qg3 {[%clk 0:00:55]}  Kh7 {[%clk 0:00:25]} 35. Qc7 {[%clk 0:00:54]}  Rd7 {[%clk 0:00:21]} 36. Qf4 {[%clk 0:00:54]}  Qe4 {[%clk 0:00:21]} 37. Qg3 {[%clk 0:00:52]}  Qg4 {[%clk 0:00:21]} 38. Qxg4 {[%clk 0:00:51]}  hxg4 {[%clk 0:00:22]} 39. Kg3 {[%clk 0:00:51]}  Bf5 {[%clk 0:00:21]} 40. Kf4 {[%clk 0:00:51]}  Be6 {[%clk 0:00:20]} 41. h5 {[%clk 0:00:50]}  Rd5 {[%clk 0:00:20]} 42. f3 {[%clk 0:00:49]}  gxf3 {[%clk 0:00:20]} 43. Kxf3 {[%clk 0:00:48]}  Rxh5 {[%clk 0:00:20]} 44. Bd4 {[%clk 0:00:49]}  Rf5+ {[%clk 0:00:21]} 45. Ke3 {[%clk 0:00:49]}  Bd5 {[%clk 0:00:21]} 46. g4 {[%clk 0:00:48]}  Rf3+ {[%clk 0:00:21]} 47. Ke2 {[%clk 0:00:48]}  Rg3 {[%clk 0:00:21]} 48. b4 {[%clk 0:00:49]}  Rxg4 {[%clk 0:00:22]} 49. Bc5 {[%clk 0:00:50]}  Rc4 {[%clk 0:00:22]} 50. Bd6 {[%clk 0:00:50]}  b5 {[%clk 0:00:22]} 51. Kf2 {[%clk 0:00:49]}  Kg6 {[%clk 0:00:22]} 52. Kg3 {[%clk 0:00:49]}  Kf5 {[%clk 0:00:23]} 53. Bf8 {[%clk 0:00:50]}  g5 {[%clk 0:00:23]} 54. Bd6 {[%clk 0:00:51]}  Rc3+ {[%clk 0:00:23]} 55. Kf2 {[%clk 0:00:52]} 0-1


[Site "https://www.chess.com"]

[Event "Titled Tuesday Blitz July 26 Late 2022"]
[White "De Gleria, Francesco"]
[Black "Melikyan, Gnel"]
[WhiteFideId "4630394"]
[BlackFideId "54109990"]
[WhiteElo "2283"]
[BlackElo "1772"]
[Result "0-1"]
[Round "05"]
[TimeControl "180+1"]
[Date "2022.07.27"]
[WhiteClock "0:00:01"]
[BlackClock "0:00:06"]

1. e4 {[%clk 0:02:59]}  e5 {[%clk 0:02:58]} 2. Nf3 {[%clk 0:02:58]}  Nc6 {[%clk 0:02:58]} 3. d4 {[%clk 0:02:58]}  exd4 {[%clk 0:02:57]} 4. Nxd4 {[%clk 0:02:59]}  Nf6 {[%clk 0:02:57]} 5. Nc3 {[%clk 0:02:59]}  Bb4 {[%clk 0:02:55]} 6. Nxc6 {[%clk 0:02:59]}  bxc6 {[%clk 0:02:55]} 7. Bd3 {[%clk 0:03:00]}  O-O {[%clk 0:02:55]} 8. O-O {[%clk 0:02:59]}  d5 {[%clk 0:02:44]} 9. Bd2 {[%clk 0:02:59]}  Bxc3 {[%clk 0:02:38]} 10. Bxc3 {[%clk 0:02:58]}  Nxe4 {[%clk 0:02:38]} 11. Bxe4 {[%clk 0:02:59]}  dxe4 {[%clk 0:02:37]} 12. Qh5 {[%clk 0:02:59]}  Qd5 {[%clk 0:02:34]} 13. Qe5 {[%clk 0:02:59]}  Qxe5 {[%clk 0:02:32]} 14. Bxe5 {[%clk 0:03:00]}  Ba6 {[%clk 0:02:14]} 15. Rfd1 {[%clk 0:02:57]}  Rac8 {[%clk 0:02:07]} 16. Rd7 {[%clk 0:02:53]}  f6 {[%clk 0:02:06]} 17. Bxc7 {[%clk 0:02:46]}  Rf7 {[%clk 0:02:03]} 18. Rxf7 {[%clk 0:02:45]}  Kxf7 {[%clk 0:02:03]} 19. Bf4 {[%clk 0:02:44]}  Bc4 {[%clk 0:01:50]} 20. b3 {[%clk 0:02:42]}  Be6 {[%clk 0:01:48]} 21. Rd1 {[%clk 0:02:39]}  a5 {[%clk 0:01:43]} 22. Rd4 {[%clk 0:02:29]}  c5 {[%clk 0:01:10]} 23. Rxe4 {[%clk 0:02:22]}  c4 {[%clk 0:01:08]} 24. h4 {[%clk 0:02:05]}  a4 {[%clk 0:00:43]} 25. bxa4 {[%clk 0:01:23]}  Ra8 {[%clk 0:00:43]} 26. Bd6 {[%clk 0:01:18]}  Rxa4 {[%clk 0:00:22]} 27. a3 {[%clk 0:01:18]}  Ra8 {[%clk 0:00:21]} 28. Bb4 {[%clk 0:01:05]}  h5 {[%clk 0:00:20]} 29. f3 {[%clk 0:01:05]}  Rd8 {[%clk 0:00:20]} 30. Kf2 {[%clk 0:01:04]}  Rd1 {[%clk 0:00:20]} 31. a4 {[%clk 0:00:59]}  Ra1 {[%clk 0:00:19]} 32. a5 {[%clk 0:00:59]}  Ra2 {[%clk 0:00:19]} 33. Re2 {[%clk 0:00:56]}  Bf5 {[%clk 0:00:18]} 34. c3 {[%clk 0:00:56]}  Ra4 {[%clk 0:00:15]} 35. Ke3 {[%clk 0:00:49]}  Bd3 {[%clk 0:00:15]} 36. Rd2 {[%clk 0:00:45]}  Ke6 {[%clk 0:00:15]} 37. Kd4 {[%clk 0:00:44]}  Kf5 {[%clk 0:00:15]} 38. Kc5 {[%clk 0:00:34]}  Kf4 {[%clk 0:00:15]} 39. Kb6 {[%clk 0:00:34]}  Ke3 {[%clk 0:00:14]} 40. Rb2 {[%clk 0:00:34]}  g5 {[%clk 0:00:13]} 41. hxg5 {[%clk 0:00:30]}  fxg5 {[%clk 0:00:14]} 42. a6 {[%clk 0:00:31]}  g4 {[%clk 0:00:14]} 43. Bc5+ {[%clk 0:00:20]}  Kf4 {[%clk 0:00:14]} 44. Rf2 {[%clk 0:00:13]}  g3 {[%clk 0:00:13]} 45. Rb2 {[%clk 0:00:12]}  h4 {[%clk 0:00:14]} 46. Kb7 {[%clk 0:00:12]}  h3 {[%clk 0:00:13]} 47. gxh3 {[%clk 0:00:12]}  Kxf3 {[%clk 0:00:14]} 48. a7 {[%clk 0:00:12]}  Be4+ {[%clk 0:00:14]} 49. Kb8 {[%clk 0:00:11]}  g2 {[%clk 0:00:14]} 50. h4 {[%clk 0:00:10]}  Ra1 {[%clk 0:00:14]} 51. Rf2+ {[%clk 0:00:05]}  Kg3 {[%clk 0:00:14]} 52. Re2 {[%clk 0:00:04]}  Bd5 {[%clk 0:00:10]} 53. Bf2+ {[%clk 0:00:04]}  Kf3 {[%clk 0:00:10]} 54. Rd2 {[%clk 0:00:04]}  Be4 {[%clk 0:00:07]} 55. Bd4 {[%clk 0:00:03]}  g1=Q {[%clk 0:00:08]} 56. Bxg1 {[%clk 0:00:03]}  Rxg1 {[%clk 0:00:09]} 57. Rd4 {[%clk 0:00:02]}  Rg8+ {[%clk 0:00:09]} 58. Kc7 {[%clk 0:00:02]}  Ra8 {[%clk 0:00:08]} 59. Rxe4 {[%clk 0:00:01]}  Kxe4 {[%clk 0:00:07]} 60. Kb7 {[%clk 0:00:01]}  Rxa7+ {[%clk 0:00:06]} 0-1


[Site "https://www.chess.com"]